bitfinex-derivatives/quotes_ETHF0:USTF0_20251210
["timestamp","ask_amount","ask_price","bid_price","bid_amount"]
[1765332794682,0.00312265,3298.4,3298.2,3.2078]
[1765332794882,0.71992265,3298.4,3298.2,3.2078]
[1765332795080,1.4309,3298.3,3298.2,3.2078]
[1765332795277,1.39869087,3298.3,3298.2,3.2078]
[1765332795678,1.40181352,3298.4,3298.2,3.2078]
[1765332795878,0.68189087,3298.3,3298.2,3.2078]
[1765332796074,1.4309,3298.3,3298.2,3.2078]
[1765332796277,2.11279087,3298.3,3298.2,3.2078]
[1765332796688,1.39869087,3298.3,3298.2,3.2078]
[1765332796876,0.68189087,3298.3,3298.2,3.2078]
[1765332797076,1.68768912,3298.4,3298.2,3.2078]
[1765332797284,0.68189087,3298.3,3298.2,3.2078]
[1765332797582,1.4309,3298.3,3298.2,3.2078]
[1765332797788,2.11279087,3298.3,3298.2,3.2078]
[1765332798182,0.68189087,3298.3,3298.2,3.2078]
[1765332798383,0.00456649,3298.7,3298.2,3.2078]
[1765332798687,0.00455297,3298.7,3298.6,3.2078]
[1765332799387,0.00717577,3298.7,3298.6,3.2078]
[1765332799689,0.4189,3299.5,3298.6,3.2078]
[1765332800282,0.4189,3299.5,3298.7,0.64860778]
[1765332800692,0.43153885,3299.0,3298.7,0.64860778]
[1765332802084,0.43153885,3299.0,3298.6,3.85640778]
[1765332806098,1.14833885,3299.0,3298.6,3.85640778]
[1765332806297,0.43153885,3299.0,3298.6,3.85640778]
[1765332808293,0.43153885,3299.0,3298.9,0.64860778]
[1765332808796,0.43153885,3299.0,3298.9,0.65102037]
[1765332809393,0.00353885,3299.0,3298.9,0.65102037]
[1765332810596,0.4189,3299.5,3298.9,0.65102037]
[1765332810801,0.4189,3299.5,3299.4,3.2078]
[1765332811602,0.42278125,3299.5,3299.4,3.2078]
[1765332811901,0.00388125,3299.5,3299.4,3.2078]
[1765332812602,0.414,3300.0,3299.4,3.2078]
[1765332812801,0.414,3300.0,3299.9,3.85640778]
[1765332812991,0.414,3300.0,3299.9,3.2078]
[1765332813198,1.844,3300.0,3299.9,3.2078]
[1765332813501,1.84791655,3300.0,3299.9,3.2078]
[1765332816299,1.84791655,3300.0,3299.1,0.00455297]
[1765332816300,1.1493,3299.5,3299.1,0.00455297]
[1765332816505,1.8687,3299.5,3299.1,0.00455297]
[1765332817494,0.4387,3299.5,3299.2,0.64860778]
[1765332817701,0.4387,3299.5,3299.4,3.2078]
[1765332820009,0.4387,3299.5,3299.4,3.35933]
[1765332820309,0.41791655,3300.0,3299.4,3.35933]
[1765332820511,0.41791655,3300.0,3299.8,3.2078]
[1765332820710,0.41791655,3300.0,3299.9,0.64860778]
[1765332821109,0.41791655,3300.0,3299.8,3.2078]
[1765332821407,1.43,3299.9,3299.8,3.2078]
[1765332821609,1.12851655,3300.0,3299.8,3.2078]
[1765332821910,1.43,3299.9,3299.8,3.2078]
[1765332822414,0.7106,3299.9,3299.8,3.2078]
[1765332822908,1.1493,3300.0,3299.8,3.85640778]
[1765332823214,0.4387,3300.0,3299.8,3.85640778]
[1765332824011,0.44082343,3300.0,3299.8,3.85640778]
[1765332825111,0.44082343,3300.0,3299.8,4.00791778]
[1765332829208,1.87082343,3300.0,3299.8,3.35931]
[1765332829720,1.43,3299.9,3299.8,3.2078]
[1765332833921,0.44082343,3300.0,3299.8,3.2078]
[1765332834321,1.13102343,3300.0,3299.8,3.2078]
[1765332834722,1.4332,3299.9,3299.8,3.2078]
[1765332837119,0.6902,3299.9,3299.8,3.2078]
[1765332837322,0.44082343,3300.0,3299.8,3.2078]
[1765332837323,1.13102343,3300.0,3299.8,3.2078]
[1765332838628,1.87402343,3300.0,3299.8,3.2078]
[1765332838928,1.13102343,3300.0,3299.8,3.2078]
[1765332839128,0.44082343,3300.0,3299.8,3.2078]
[1765332841626,0.50156758,3300.4,3300.2,0.15149]
[1765332841826,0.43,3300.5,3300.3,3.35928]
[1765332842219,0.4387,3301.0,3300.4,0.15148]
[1765332842420,1.8719,3301.0,3300.9,3.2078]
[1765332842626,0.4301,3300.5,3300.4,3.35928]
[1765332843127,1.1203,3300.5,3300.4,3.35928]
[1765332843328,1.1203,3300.5,3300.4,3.2078]
[1765332843519,0.4301,3300.5,3300.4,3.2078]
[1765332844427,1.8633,3300.5,3300.4,3.2078]
[1765332846128,1.1203,3300.5,3300.4,3.2078]
[1765332846331,1.833,3300.5,3300.4,3.2078]
[1765332847932,1.1203,3300.5,3300.4,3.2078]
[1765332848331,0.44239036,3301.0,3300.4,4.03942974]
[1765332848530,1.16229036,3301.0,3300.9,3.2078]
[1765332848732,0.44239036,3301.0,3300.9,3.2078]
[1765332848932,1.16229036,3301.0,3300.9,3.2078]
[1765332849234,1.87499036,3301.0,3300.9,3.2078]
[1765332850628,1.16229036,3301.0,3300.9,3.2078]
[1765332850829,1.87499036,3301.0,3300.9,3.2078]
[1765332851026,1.87499036,3301.0,3300.4,0.7405]
[1765332851027,1.1567,3300.5,3300.4,0.7405]
[1765332851232,1.4326,3300.2,3300.1,4.622]
[1765332851434,0.7199,3300.2,3300.1,4.622]
[1765332851930,1.4326,3300.2,3300.1,4.622]
[1765332854336,0.7199,3300.2,3300.1,4.622]
[1765332855439,1.8766,3300.5,3300.4,0.7405]
[1765332856741,0.7199,3300.2,3300.1,4.622]
[1765332857343,1.4326,3300.7,3300.6,1.4142]
[1765332857541,1.4326,3300.7,3300.6,0.7405]
[1765332857838,1.4326,3300.7,3300.6,1.4142]
[1765332858035,1.4326,3300.7,3300.6,0.7405]
[1765332859740,1.4326,3300.2,3300.1,3.9483]
[1765332859936,0.444,3300.5,3299.8,0.7405]
[1765332859937,1.4326,3299.9,3299.8,0.7405]
[1765332860138,0.7199,3299.9,3299.8,1.4142]
[1765332860745,1.1639,3300.0,3299.9,1.4142]
[1765332861040,1.8766,3300.5,3300.4,0.7405]
[1765332861240,2.80572178,3300.5,3300.4,1.4142]
[1765332861441,2.80572178,3300.5,3299.7,3.2078]
[1765332861640,2.10823761,3300.4,3299.7,3.2078]
[1765332861942,0.67563761,3300.3,3299.7,3.2078]
[1765332862143,1.11963761,3300.5,3299.7,3.2078]
[1765332862937,1.4326,3299.8,3299.7,4.622]
[1765332864440,1.4326,3299.8,3299.7,3.2078]
[1765332865344,1.4326,3299.8,3299.7,3.9345]
[1765332865843,1.4326,3299.8,3299.7,4.617]
[1765332866746,1.4045,3299.8,3299.7,4.617]
[1765332866944,1.4045,3299.8,3299.7,3.2078]
[1765332867245,2.09235903,3299.8,3299.7,0.7267]
[1765332867648,2.09235903,3299.8,3299.7,1.4092]
[1765332868237,1.4166,3299.8,3299.7,1.4092]
[1765332868548,1.4166,3299.8,3299.7,0.7267]
[1765332868942,0.732,3299.4,3299.3,4.617]
[1765332869344,0.67532033,3299.9,3299.3,4.617]
[1765332869646,1.11932033,3300.0,3299.3,4.617]
[1765332873445,0.732,3299.4,3299.3,1.4092]
[1765332873647,1.1655,3299.5,3299.4,1.4092]
[1765332875346,1.8501,3299.5,3299.4,1.4092]
[1765332875954,1.1655,3299.5,3299.4,1.4092]
[1765332876253,1.8501,3299.5,3299.4,1.4092]
[1765332877256,1.8501,3299.5,3299.4,0.7267]
[1765332878468,1.8501,3299.5,3299.1,0.00455297]
[1765332878765,1.8501,3299.5,3299.4,0.7267]
[1765332878963,1.8501,3299.5,3299.4,1.4092]
[1765332879668,1.8501,3299.5,3299.4,0.7267]
[1765332879969,1.8501,3299.5,3299.4,1.4092]
[1765332881364,1.8501,3299.5,3299.4,0.7267]
[1765332882158,1.8501,3299.5,3299.4,1.4092]
[1765332882765,1.8501,3299.5,3299.4,0.7267]
[1765332883257,2.52560825,3299.5,3299.4,0.7267]
[1765332883467,1.8501,3299.5,3299.4,0.7267]
[1765332884064,1.8501,3299.5,3299.1,0.00455297]
[1765332884065,0.732,3299.2,3299.1,1.41375297]
[1765332884381,1.4166,3299.2,3299.1,0.00455297]
[1765332884571,1.4166,3299.2,3299.1,0.73125297]
[1765332884771,1.4166,3299.2,3299.1,1.41375297]
[1765332885268,1.4166,3299.2,3299.1,0.73125297]
[1765332886469,1.4166,3299.2,3299.1,0.00455297]
[1765332886768,1.4166,3299.2,3299.1,1.41375297]
[1765332888473,1.4166,3299.2,3299.1,0.73125297]
[1765332888673,1.4166,3299.2,3299.1,1.41375297]
[1765332890371,1.8501,3299.5,3299.4,0.7267]
[1765332890570,1.4166,3299.2,3299.1,0.73125297]
[1765332890872,1.4166,3299.2,3299.1,1.41375297]
[1765332891973,4.6244,3299.7,3299.6,1.4092]
[1765332892172,5.55460025,3299.7,3299.6,1.4092]
[1765332892373,0.93020025,3299.7,3299.6,2.08934974]
[1765332892577,3.9398,3300.1,3300.0,1.4092]
[1765332892768,5.30121225,3300.1,3300.0,1.4092]
[1765332893276,4.61661225,3300.1,3300.0,1.4092]
[1765332894274,5.33981225,3300.1,3300.0,1.4092]
[1765332894470,1.8496,3300.0,3299.9,0.7064]
[1765332894674,2.52641225,3300.0,3299.9,0.7064]
[1765332894874,2.52641225,3300.0,3299.9,1.4017]
[1765332895473,2.52641225,3300.0,3299.3,3.2078]
[1765332895775,0.4072,3300.0,3299.3,4.6095]
[1765332895975,1.08389093,3300.0,3299.3,4.6095]
[1765332896770,1.80309093,3300.0,3299.9,0.7064]
[1765332896976,2.52629093,3300.0,3299.9,0.7064]
[1765332897175,2.52629093,3300.0,3299.9,1.4017]
[1765332898284,1.8496,3300.0,3299.9,1.4017]
[1765332902295,2.52612979,3300.0,3299.4,0.64761938]
[1765332902495,1.8496,3300.0,3299.3,3.2078]
[1765332903090,2.49721938,3300.0,3299.3,3.2078]
[1765332903288,1.8496,3300.0,3299.3,3.2078]
[1765332906596,1.3968,3299.4,3299.3,4.6289]
[1765332907090,1.3968,3299.4,3299.3,3.9142]
[1765332907289,1.3968,3299.4,3299.3,4.6657]
[1765332907492,0.7192,3299.4,3299.3,4.6657]
[1765332907890,1.3968,3299.4,3299.3,3.951]
[1765332908090,1.3968,3299.4,3299.3,1.4579]
[1765332908499,0.7192,3299.4,3299.3,1.4579]
[1765332910986,1.1477,3299.5,3299.4,1.4579]
[1765332912001,3.2078,3300.1,3300.0,1.4579]
[1765332912296,0.7017,3299.8,3299.7,4.59861938]
[1765332912492,1.3793,3299.8,3299.7,4.6657]
[1765332913086,0.7017,3299.8,3299.7,4.6657]
[1765332914494,0.446,3300.0,3299.7,4.6657]
[1765332914495,1.1477,3300.0,3299.9,1.4579]
[1765332914800,5.0311,3300.5,3300.4,1.4579]
[1765332915092,5.96208458,3300.5,3300.4,0.7432]
[1765332915495,5.96208458,3300.5,3300.4,1.4579]
[1765332916501,5.70818209,3300.5,3300.4,1.4579]
[1765332917802,3.88488209,3300.5,3300.4,1.4579]
[1765332918397,0.67708209,3300.5,3300.4,1.4579]
[1765332918711,3.21149036,3301.0,3300.9,1.4579]
[1765332919000,0.00369036,3301.0,3300.9,1.4579]
[1765332919201,0.00369036,3301.0,3300.9,2.10551938]
[1765332921200,0.00369036,3301.0,3300.9,1.4579]
[1765332921503,1.82899036,3301.0,3300.9,1.4579]
[1765332922106,1.15139036,3301.0,3300.9,1.4579]
[1765332922303,0.00369036,3301.0,3300.9,1.4579]
[1765332925812,1.85819036,3301.0,3300.9,0.7432]
[1765332926103,0.00369036,3301.0,3300.9,1.4264]
[1765332926601,3.9376,3301.5,3301.4,1.4264]
[1765332926799,5.0904,3301.5,3301.4,1.4264]
[1765332927701,5.092648,3301.5,3301.4,1.43021721]
[1765332931601,5.092648,3301.5,3301.4,0.00381721]
[1765332931905,5.74026738,3301.5,3301.4,0.00381721]
[1765332932113,6.41583899,3301.5,3301.4,0.00381721]
[1765332932312,6.41583899,3301.5,3301.4,1.721e-05]
[1765332932500,6.41583899,3301.5,3300.4,4.6342]
[1765332932501,1.8826,3300.5,3300.4,4.6342]
[1765332932696,1.8826,3300.5,3300.4,3.9481]
[1765332933506,1.8826,3300.5,3300.4,3.95135049]
[1765332934812,1.8826,3300.5,3300.4,3.21105049]
[1765332935112,1.8826,3300.5,3300.4,3.95135049]
[1765332935702,1.8826,3300.5,3300.4,3.21105049]
[1765332935910,1.8826,3300.5,3300.4,0.00325049]
[1765332936410,1.46654599,3300.8,3300.7,1.4264]
[1765332936803,1.46654599,3300.8,3300.7,0.7403]
[1765332938215,1.8826,3300.5,3300.4,1.42965049]
[1765332940315,1.46654599,3300.8,3300.7,1.4264]
[1765332940703,0.00454599,3300.8,3300.7,1.4264]
[1765332940909,0.00454599,3300.8,3300.7,2.07401938]
[1765332941907,1.40525211,3301.3,3301.2,1.4264]
[1765332942114,3.9376,3301.4,3301.3,1.4264]
[1765332942508,4.6698,3301.4,3301.3,0.7403]
[1765332942710,4.6698,3301.4,3300.8,0.64761938]
[1765332942912,4.6698,3301.4,3301.3,0.7403]
[1765332943208,4.6698,3301.4,3301.3,1.4264]
[1765332944515,5.34575333,3301.4,3301.3,1.4264]
[1765332944709,3.88375333,3301.4,3301.3,1.4264]
[1765332944910,3.88375333,3301.4,3301.0,0.3399]
[1765332944911,1.462,3300.9,3300.8,4.6342]
[1765332945108,4.6698,3301.4,3301.3,0.7403]
[1765332945412,4.6698,3301.4,3301.3,1.4264]
[1765332945413,5.34574875,3301.4,3301.3,1.4264]
[1765332946109,2.13794875,3301.4,3301.3,1.4264]
[1765332946314,0.7298,3300.9,3300.8,4.6342]
[1765332946513,2.13794875,3301.3,3301.2,0.7403]
[1765332947216,2.13794875,3301.3,3301.2,1.4264]
[1765332947418,2.13794875,3301.3,3301.2,0.7403]
[1765332947610,2.13794875,3301.3,3301.2,1.4264]
[1765332947812,3.9376,3301.4,3301.3,1.4264]
[1765332948023,5.34619812,3301.4,3301.3,0.7403]
[1765332949718,1.462,3300.9,3300.8,3.9481]
[1765332949930,1.462,3300.9,3300.8,4.6342]
[1765332950419,0.7298,3300.9,3300.8,4.6342]
[1765332951318,1.462,3300.9,3300.8,4.6342]
[1765332951521,1.462,3300.9,3300.8,3.9481]
[1765332951722,1.462,3300.9,3300.8,3.2078]
[1765332951920,1.462,3300.9,3300.8,3.9481]
[1765332952222,1.462,3300.9,3300.8,4.6342]
[1765332952422,1.462,3300.9,3300.8,3.9481]
[1765332953020,1.462,3300.9,3300.8,3.2078]
[1765332953422,1.8681,3300.5,3300.4,3.94765049]
[1765332953617,1.8681,3300.5,3300.4,4.67425049]
[1765332955316,0.002248,3301.5,3300.5,6.3432]
[1765332955515,0.446,3302.0,3301.4,4.03893779]
[1765332955725,0.446,3302.0,3301.9,3.2078]
[1765332956424,0.44952713,3302.0,3301.9,4.83391992]
[1765332957416,0.44952713,3302.0,3301.9,3.2078]
[1765332959425,0.422,3303.0,3302.3,0.15139]
[1765332959626,0.422,3303.0,3302.9,3.2078]
[1765332959825,1.8681,3303.0,3302.9,3.2078]
[1765332960227,1.87044716,3303.0,3302.9,3.21068164]
[1765332960816,1.87044716,3303.0,3302.9,0.00288164]
[1765332963634,1.4461,3302.6,3302.5,3.2078]
[1765332963927,1.4461,3302.6,3302.5,0.43889432]
[1765332964231,1.4461,3301.2,3301.1,0.7366]
[1765332964726,0.7004,3301.2,3301.1,1.46672952]
[1765332964918,1.4461,3301.2,3301.1,1.46672952]
[1765332965328,0.7004,3301.2,3301.1,1.46672952]
[1765332966629,1.4461,3301.2,3301.1,1.46672952]
[1765332967130,1.4461,3301.2,3301.1,0.74012952]
[1765332967530,1.4461,3301.2,3301.1,0.00352952]
[1765332969538,3.2078,3301.3,3300.8,0.004546]
[1765332969539,1.459,3300.9,3300.8,0.004546]
[1765332970633,1.459,3300.9,3300.8,0.00735507]
[1765332972340,1.459,3300.9,3300.8,1.39955507]
[1765332972539,1.459,3300.9,3300.8,0.00735507]
[1765332975638,4.6668,3300.9,3300.8,0.00735507]
[1765332975837,4.6668,3300.9,3299.6,1.61980273]
[1765332975838,1.8776,3300.0,3299.9,4.6]
[1765332976039,0.4186,3300.0,3299.9,4.6]
[1765332976943,0.42146801,3300.0,3299.9,4.60386632]
[1765332977134,0.00286801,3300.0,3299.9,4.60386632]
[1765332980053,0.00286801,3300.0,3299.9,1.39606632]
[1765332980351,0.00286801,3300.0,3299.9,4.60386632]
[1765332985446,0.73036801,3300.0,3299.9,4.60386632]
[1765332985654,1.84876801,3300.0,3299.9,3.88376632]
[1765332986248,0.00286801,3300.0,3299.9,4.55806632]
[1765332986751,1.80576801,3300.0,3299.9,3.21166632]
[1765332987054,1.80576801,3300.0,3299.9,4.55806632]
[1765332987648,1.80576801,3300.0,3299.9,3.88376632]
[1765332989160,1.80576801,3300.0,3299.9,4.55806632]
[1765332989350,1.10796801,3300.0,3299.9,4.55806632]
[1765332989551,0.42346801,3300.0,3299.9,4.55806632]
[1765332990259,1.10796801,3300.0,3299.9,4.55806632]
[1765332992760,0.00286801,3300.0,3299.9,4.55806632]
[1765332993357,0.00286801,3300.0,3299.9,6.17786905]
[1765332994356,0.00286801,3300.0,3299.9,4.55806632]
[1765332997162,1.80576801,3300.0,3299.9,4.55806632]
[1765332997356,1.10796801,3300.0,3299.9,4.55806632]
[1765332997554,0.42346801,3300.0,3299.9,4.55806632]
[1765332998155,1.10796801,3300.0,3299.9,4.55806632]
[1765332998359,1.80576801,3300.0,3299.9,4.55806632]
[1765332998558,1.80576801,3300.0,3299.9,3.88376632]
[1765332998954,1.80576801,3300.0,3299.9,4.55806632]
[1765333001254,0.00286801,3300.0,3299.9,4.55806632]
[1765333001856,0.42346801,3300.0,3299.9,4.55806632]
[1765333003462,0.00286801,3300.0,3299.9,4.55806632]
[1765333006064,0.42346801,3300.0,3299.9,4.55806632]
[1765333007666,1.80576801,3300.0,3299.9,4.55806632]
[1765333007865,1.80576801,3300.0,3299.9,3.88376632]
[1765333009065,1.80576801,3300.0,3299.9,4.55806632]
[1765333009368,1.80576801,3300.0,3299.9,3.88376632]
[1765333009858,1.80576801,3300.0,3299.9,4.55806632]
[1765333010063,1.80576801,3300.0,3299.9,5.51549165]
[1765333010369,1.80576801,3300.0,3299.9,4.84339165]
[1765333010670,1.80576801,3300.0,3299.9,5.51549165]
[1765333013272,1.80576801,3300.0,3299.9,6.18979165]
[1765333015173,1.10796801,3300.0,3299.9,6.18979165]
[1765333015369,1.78856801,3300.0,3299.9,6.18979165]
[1765333016872,1.10796801,3300.0,3299.9,6.18979165]
[1765333017073,1.78856801,3300.0,3299.9,6.18979165]
[1765333018473,1.78856801,3300.0,3299.9,5.51549165]
[1765333018672,1.78856801,3300.0,3299.9,6.23809165]
[1765333019373,1.10796801,3300.0,3299.9,6.23809165]
[1765333019874,0.42346801,3300.0,3299.9,6.23809165]
[1765333020477,0.00286801,3300.0,3299.9,6.23809165]
[1765333020877,0.00286801,3300.0,3299.9,4.60636632]
[1765333021870,0.00286801,3300.0,3299.9,6.23715338]
[1765333022876,0.00286801,3300.0,3299.9,4.60636632]
[1765333023777,0.00286801,3300.0,3299.9,5.25385787]
[1765333023979,0.23825543,3300.6,3300.5,1.4586]
[1765333024877,1.8284,3301.0,3300.9,0.736]
[1765333025181,2.06927834,3301.0,3300.9,1.4586]
[1765333025777,1.38867834,3301.0,3300.9,1.4586]
[1765333025976,1.15042034,3301.0,3300.9,1.4586]
[1765333026176,1.83102034,3301.0,3300.9,1.4586]
[1765333026378,1.83102034,3301.0,3300.9,0.736]
[1765333027492,1.83102034,3301.0,3300.9,1.4586]
[1765333029076,0.42122034,3301.0,3300.9,1.4586]
[1765333029279,0.7292,3300.7,3300.6,1.82253121]
[1765333029485,0.7292,3300.7,3300.6,2.54513121]
[1765333029678,1.15092034,3301.0,3300.9,0.736]
[1765333029884,1.83152034,3301.0,3300.9,1.4586]
[1765333030086,1.15092034,3301.0,3300.9,1.4586]
[1765333030288,0.42172034,3301.0,3300.9,1.4586]
[1765333030488,0.00262034,3301.0,3300.9,1.4586]
[1765333031988,0.00262034,3301.0,3300.9,2.54513121]
[1765333032181,0.00262034,3301.0,3300.9,3.19262276]
[1765333033391,0.00262034,3301.0,3300.9,3.73588837]
[1765333035293,0.00262034,3301.0,3300.9,2.10609155]
[1765333035790,0.00262034,3301.0,3300.9,3.73588837]
[1765333036486,0.426546,3301.5,3301.4,1.3894]
[1765333036487,0.004546,3301.5,3301.4,1.3894]
[1765333036691,0.004546,3301.5,3301.4,2.03689155]
[1765333037286,0.00743914,3301.5,3301.4,2.03689155]
[1765333042001,5.0485,3302.5,3302.4,1.3894]
[1765333042193,5.0485,3302.5,3302.4,0.6908]
[1765333042395,1.1411,3302.0,3301.9,4.5972]
[1765333042995,1.86569257,3302.0,3301.9,0.6931072]
[1765333043902,1.86569257,3302.0,3301.9,1.3917072]
[1765333044403,0.44409257,3302.0,3301.9,1.3917072]
[1765333044708,0.00269257,3302.0,3301.9,1.3917072]
[1765333045006,0.00269257,3302.0,3301.9,4.5995072]
[1765333049907,1.82139257,3302.0,3301.9,3.9009072]
[1765333052611,1.82139257,3302.0,3301.9,4.6299072]
[1765333054713,0.41229257,3302.0,3301.9,4.6299072]
[1765333055311,1.82139257,3302.0,3301.9,3.8919072]
[1765333056208,1.82139257,3302.0,3301.9,4.6209072]
[1765333056405,0.00269257,3302.0,3301.9,4.6209072]
[1765333056907,0.00269257,3302.0,3301.9,4.7723172]
[1765333060509,3.2078,3302.9,3302.2,1.4108]
[1765333060716,3.2078,3302.9,3302.8,1.4108]
[1765333060910,3.9247,3302.9,3302.8,1.4108]
[1765333061111,0.4414,3303.0,3302.7,0.64749155]
[1765333061112,1.1583,3303.0,3302.9,1.4108]
[1765333061314,0.4414,3303.0,3302.9,1.4108]
[1765333061610,0.44431262,3303.0,3302.9,1.4108]
[1765333061818,1.4091,3302.9,3302.8,3.2078]
[1765333062015,1.12941262,3303.0,3302.9,1.4108]
[1765333062215,0.41251262,3303.0,3302.9,1.4108]
[1765333062617,0.00291262,3303.0,3302.9,1.4108]
[1765333067207,0.00291262,3303.0,3302.9,1.56216]
[1765333067415,0.00291262,3303.0,3302.8,4.83143621]
[1765333067416,0.4414,3303.5,3303.4,1.4108]
[1765333067713,1.1583,3303.5,3303.4,1.4108]
[1765333068422,1.16110872,3303.5,3303.4,1.4108]
[1765333068920,1.85330872,3303.5,3303.4,0.6818]
[1765333069113,1.85330872,3303.5,3303.3,3.2078]
[1765333069320,1.8187,3303.0,3302.9,4.6186]
[1765333069519,1.8187,3303.0,3302.9,3.2078]
[1765333070216,1.4091,3302.6,3302.5,3.8896]
[1765333072314,1.4091,3302.6,3302.5,4.6186]
[1765333072515,1.4091,3302.6,3302.5,3.8896]
[1765333072722,0.7169,3302.6,3302.5,4.6186]
[1765333072914,1.4091,3302.6,3302.5,4.6186]
[1765333073116,1.4091,3302.6,3302.5,3.8896]
[1765333073419,1.4131,3302.6,3302.5,3.8896]
[1765333073624,1.4131,3302.6,3302.5,3.2078]
[1765333074125,1.4131,3302.6,3302.5,3.9302]
[1765333074922,1.4131,3302.6,3302.5,4.6511]
[1765333075820,0.7169,3302.6,3302.5,4.6511]
[1765333076014,5.0509,3303.0,3302.9,0.7224]
[1765333076217,5.0509,3303.0,3302.5,3.2078]
[1765333076417,0.7373,3302.6,3302.5,4.6511]
[1765333076921,1.4335,3302.6,3302.5,4.6511]
[1765333077721,3.6174,3303.0,3302.5,4.6511]
[1765333077922,5.0509,3303.0,3302.9,0.7224]
[1765333078318,5.0509,3303.0,3302.5,3.2078]
[1765333078519,3.6174,3303.0,3302.9,1.4433]
[1765333078720,4.3547,3303.0,3302.9,1.4433]
[1765333079019,5.0509,3303.0,3302.9,1.4433]
[1765333079620,5.08550872,3303.5,3303.4,0.7224]
[1765333079821,5.721236,3303.5,3303.4,0.7224]
[1765333080223,5.08550872,3303.5,3302.5,5.08313621]
[1765333081423,5.08550872,3303.5,3302.5,4.83143621]
[1765333081629,5.08550872,3303.5,3302.5,3.2078]
[1765333082524,5.08550872,3303.5,3302.9,3.2078]
[1765333082725,1.8612,3303.0,3302.9,4.6511]
[1765333083027,1.8612,3303.0,3302.9,3.9302]
[1765333083227,1.8612,3303.0,3302.9,4.6511]
[1765333083630,1.165,3303.0,3302.9,4.6511]
[1765333083927,0.4277,3303.0,3302.9,4.6511]
[1765333084724,1.165,3303.0,3302.9,4.6511]
[1765333085526,1.8612,3303.0,3302.9,3.9302]
[1765333085731,1.8612,3303.0,3302.9,4.6511]
[1765333085935,1.165,3303.0,3302.9,4.6511]
[1765333086135,3.65200872,3303.5,3302.9,4.6511]
[1765333086326,5.08550872,3303.5,3303.4,0.7224]
[1765333086630,5.08550872,3303.5,3302.9,3.2078]
[1765333087032,1.87770872,3303.5,3303.4,1.4433]
[1765333087234,1.18150872,3303.5,3303.4,1.4433]
[1765333087426,0.44420872,3303.5,3303.4,1.4433]
[1765333087826,1.87770872,3303.5,3303.4,0.7224]
[1765333088224,1.87770872,3303.5,3303.4,1.4433]
[1765333088424,1.18150872,3303.5,3303.4,1.4433]
[1765333089130,1.87770872,3303.5,3303.4,1.4433]
[1765333089534,1.87770872,3303.5,3303.0,1.07729803]
[1765333089734,1.4335,3303.1,3303.0,2.52059803]
[1765333090532,1.87770872,3303.5,3303.4,0.7224]
[1765333090737,1.87770872,3303.5,3303.4,1.4433]
[1765333091031,1.87770872,3303.5,3303.4,0.7224]
[1765333091233,1.87770872,3303.5,3303.4,1.4433]
[1765333091433,1.87770872,3303.5,3303.4,0.7224]
[1765333091940,1.89460872,3303.5,3303.4,1.4392]
[1765333094333,0.00280872,3303.5,3303.4,1.4392]
[1765333094734,1.17560872,3303.5,3303.4,1.4392]
[1765333098041,0.00280872,3303.5,3303.4,1.4392]
[1765333098241,0.44930872,3303.5,3303.4,1.4392]
[1765333098442,1.17560872,3303.5,3303.4,1.4392]
[1765333098637,0.00280872,3303.5,3303.4,1.4392]
[1765333099340,3.2078,3304.3,3303.4,1.4392]
[1765333099341,4.6472,3304.3,3304.2,0.7312]
[1765333099645,4.6472,3304.3,3304.2,1.448]
[1765333100245,4.65028228,3304.3,3304.2,1.448]
[1765333100447,3.21088228,3304.3,3304.2,1.448]
[1765333101139,0.72938228,3304.3,3304.2,1.448]
[1765333101746,1.44248228,3304.3,3304.2,1.448]
[1765333102144,0.00308228,3304.3,3304.2,1.448]
[1765333103539,3.2078,3304.7,3304.6,1.4056]
[1765333103742,1.8404,3305.0,3304.9,0.7161]
[1765333103949,1.8404,3305.0,3304.6,3.2078]
[1765333104139,1.8404,3305.0,3304.9,0.7161]
[1765333104650,1.84326522,3305.0,3304.9,1.40943141]
[1765333105747,1.84326522,3305.0,3304.9,0.71993141]
[1765333107454,1.84326522,3305.0,3304.9,1.40943141]
[1765333107650,1.84326522,3305.0,3304.9,0.71993141]
[1765333108050,1.84326522,3305.0,3304.9,0.00383141]
[1765333108250,1.84326522,3305.0,3304.9,0.71993141]
[1765333109854,1.84326522,3305.0,3304.9,0.00383141]
[1765333110156,1.84326522,3305.0,3304.9,0.71993141]
[1765333113157,1.84326522,3305.0,3304.9,0.00383141]
[1765333115565,1.84326522,3305.0,3304.9,0.71993141]
[1765333115760,1.84326522,3305.0,3304.9,1.40943141]
[1765333116166,1.84326522,3305.0,3304.9,0.71993141]
[1765333116765,1.84326522,3305.0,3304.9,1.40943141]
[1765333117470,1.84326522,3305.0,3304.9,0.71993141]
[1765333117963,1.84326522,3305.0,3304.9,1.40943141]
[1765333118167,1.84326522,3305.0,3304.9,0.71993141]
[1765333118763,1.84326522,3305.0,3304.9,0.00383141]
[1765333118970,1.84326522,3305.0,3304.9,0.71993141]
[1765333119167,1.84326522,3305.0,3304.9,1.40943141]
[1765333119664,0.00286522,3305.0,3304.9,1.40943141]
[1765333120063,0.40716522,3305.0,3304.9,1.40943141]
[1765333120769,0.00286522,3305.0,3304.9,1.40943141]
[1765333125968,1.1644,3305.5,3305.4,1.4056]
[1765333126273,3.2078,3306.1,3305.9,1.4056]
[1765333126274,1.1644,3306.0,3305.9,1.4056]
[1765333126477,1.8592,3306.0,3305.9,1.4056]
[1765333127076,1.4127,3305.7,3305.6,1.41013906]
[1765333127277,0.7179,3305.7,3305.6,1.41013906]
[1765333127975,0.45039078,3306.0,3305.9,1.4056]
[1765333128175,1.86309078,3306.0,3305.9,1.4056]
[1765333128371,1.86309078,3306.0,3305.9,0.7161]
[1765333128878,1.86309078,3306.0,3305.9,1.4056]
[1765333129380,0.45039078,3306.0,3305.9,1.4056]
[1765333129769,0.00389078,3306.0,3305.9,1.4056]
[1765333129975,1.12609078,3306.0,3305.9,1.55683]
[1765333130279,0.40819078,3306.0,3305.9,1.55683]
[1765333130479,0.00389078,3306.0,3305.9,1.55683]